bitfinex/quotes_ETHUSD_20241217
["timestamp","ask_amount","ask_price","bid_price","bid_amount"]
[1734431171521,3.98589444,4008.9,4007.5,0.55]
[1734431171722,3.19489444,4008.8,4007.5,0.55]
[1734431171938,3.5062001,4008.7,4007.5,0.55]
[1734431172094,1.35424414,4008.7,4007.5,0.55]
[1734431172293,0.8606962,4008.6,4007.5,0.55]
[1734431172598,1.04293848,4008.8,4007.6,0.8101]
[1734431172835,1.83393848,4009.2,4008.3,2.32871142]
[1734431173121,1.12001348,4009.1,4008.4,4.09318622]
[1734431173350,7.80053049,4009.3,4008.4,4.09318622]
[1734431174225,7.80053049,4009.3,4008.4,3.8101]
[1734431174414,1.87343376,4009.5,4008.4,3.8101]
[1734431174415,1.08243376,4009.5,4008.7,2.32871142]
[1734431174723,8.84346897,4009.7,4008.7,2.32871142]
[1734431174724,7.80053049,4009.7,4008.8,3.8101]
[1734431176663,0.86064815,4009.6,4008.8,0.8101]
[1734431176865,0.8322,4009.5,4008.8,0.8101]
[1734431177370,0.8322,4009.5,4008.5,0.7834]
[1734431177584,0.8607907,4009.4,4008.5,0.7834]
[1734431177738,1.87513848,4009.5,4008.5,0.7834]
[1734431178064,0.78005305,4009.6,4007.9,0.7834]
[1734431178065,0.8322,4009.1,4007.9,0.7834]
[1734431178235,0.86087274,4009.0,4007.9,0.7834]
[1734431178439,3.1953351,4009.0,4007.9,0.7834]
[1734431178624,0.86087385,4008.9,4007.9,0.7834]
[1734431178835,1.87513848,4009.1,4007.9,0.7834]
[1734431179038,4.31957171,4009.0,4007.9,0.7834]
[1734431179241,1.12413348,4009.0,4007.9,0.7834]
[1734431179467,1.12413348,4009.0,4007.9,3.11211142]
[1734431179655,1.12413348,4009.0,4008.0,3.0]
[1734431181265,1.12413348,4009.0,4007.9,3.11211142]
[1734431181266,1.12413348,4009.0,4007.9,0.7834]
[1734431181478,1.12413348,4009.0,4008.1,0.7834]
[1734431181656,0.99676024,4008.9,4008.1,0.7834]
[1734431182042,1.04293848,4009.3,4008.1,0.7834]
[1734431182043,8.84346897,4009.4,4008.1,0.7834]
[1734431182248,7.80053049,4009.4,4008.5,0.7834]
[1734431184075,0.8322,4009.2,4007.9,2.32871142]
[1734431184275,1.04293848,4009.1,4008.0,0.7834]
[1734431184734,7.80053049,4009.0,4008.0,0.7834]
[1734431184934,2.20074757,4008.9,4008.0,0.7834]
[1734431185131,1.33942915,4008.9,4008.0,0.7834]
[1734431186046,0.86103181,4008.8,4008.0,0.7834]
[1734431186247,1.33942915,4008.9,4008.0,0.7834]
[1734431187149,0.86115265,4008.8,4008.0,0.7834]
[1734431187371,1.10440508,4008.7,4008.0,0.7834]
[1734431187752,8.90493557,4008.7,4008.0,0.7834]
[1734431189047,8.89957592,4008.7,4008.0,0.7834]
[1734431189250,0.86140452,4008.6,4008.0,0.7834]
[1734431189545,0.86140452,4008.6,4007.5,2.32871142]
[1734431189546,0.8322,4008.5,4007.5,0.7834]
[1734431189771,0.86140452,4008.4,4007.5,0.7834]
[1734431189945,2.95553037,4008.5,4007.5,0.7834]
[1734431190147,0.86142034,4008.4,4007.5,0.7834]
[1734431191479,2.95553037,4008.5,4007.5,0.7834]
[1734431191480,2.12333037,4008.5,4007.5,0.7834]
[1734431191654,3.41310939,4008.4,4007.5,0.7834]
[1734431191861,1.25885721,4008.4,4007.5,0.7834]
[1734431192463,0.8322,4008.2,4007.0,0.7834]
[1734431192978,7.80053049,4008.1,4007.0,0.7834]
[1734431193190,3.19597354,4008.0,4007.0,0.7834]
[1734431193349,3.49315387,4007.9,4007.0,0.7834]
[1734431193544,2.15412739,4007.8,4007.0,0.7834]
[1734431194279,2.38115697,4007.9,4007.0,0.7834]
[1734431194447,0.86158012,4007.8,4007.0,0.7834]
[1734431196757,1.87418832,4007.6,4006.7,0.7834]
[1734431197022,1.04198832,4007.3,4006.4,0.7834]
[1734431197182,1.29145749,4007.2,4006.4,0.7834]
[1734431197396,0.86158012,4007.1,4006.4,0.7834]
[1734431198261,7.80053049,4007.2,4006.4,0.7834]
[1734431202808,7.80053049,4007.1,4006.4,0.7834]
[1734431203009,7.80053049,4007.1,4006.4,1.06648622]
[1734431203207,7.80053049,4007.1,4006.4,0.7834]
[1734431203449,8.58058354,4007.1,4006.4,0.7834]
[1734431204647,0.8322,4007.0,4006.1,0.7834]
[1734431204833,0.8322,4007.0,4005.3,0.7834]
[1734431205195,7.80053049,4006.8,4005.3,0.7834]
[1734431205550,0.86327305,4006.7,4005.3,0.7834]
[1734431206255,0.86327305,4006.7,4005.3,3.7834]
[1734431206755,7.80053049,4006.6,4005.3,0.7834]
[1734431207552,7.80053049,4006.6,4005.4,0.8153]
[1734431208952,7.80053049,4006.6,4005.3,3.0]
[1734431208953,7.80053049,4006.6,4005.5,1.3653]
[1734431209267,7.80053049,4006.6,4005.8,0.8153]
[1734431209422,7.80053049,4006.6,4006.1,3.8153]
[1734431210842,7.80053049,4006.6,4006.1,0.8153]
[1734431211035,7.80053049,4007.6,4006.5,3.8153]
[1734431211242,7.80053049,4007.6,4006.6,0.8153]
[1734431214825,7.80053049,4007.5,4006.6,0.8153]
[1734431216464,7.80053049,4007.5,4006.8,3.14401142]
[1734431216800,2.59316241,4008.9,4006.7,0.55]
[1734431216801,7.80053049,4008.2,4007.3,3.8153]
[1734431216969,8.58058354,4008.2,4007.3,3.8153]
[1734431217967,8.58058354,4008.2,4007.4,0.55]
[1734431218126,11.91058354,4008.2,4007.4,0.55]
[1734431218458,11.13053049,4008.2,4007.6,0.55]
[1734431218745,11.13053049,4008.2,4007.7,0.8153]
[1734431219971,11.13053049,4008.2,4007.5,0.55]
[1734431220114,11.13053049,4008.2,4007.6,0.8153]
[1734431220337,11.13053049,4008.2,4007.7,0.55]
[1734431220605,14.46053049,4008.2,4007.7,0.55]
[1734431221075,6.66,4008.2,4007.7,0.55]
[1734431222057,6.66,4008.2,4007.6,0.8153]
[1734431223090,9.99,4008.2,4007.6,0.8153]
[1734431223367,10.989,4008.2,4007.6,0.8153]
[1734431225620,11.7738,4008.2,4007.0,0.55]
[1734431225813,15.1038,4008.2,4006.9,0.7909]
[1734431226051,0.7848,4008.1,4006.9,0.7909]
[1734431226253,0.7848,4007.9,4006.1,0.7909]
[1734431226438,7.80053049,4007.7,4006.1,0.7909]
[1734431227385,7.80053049,4007.4,4006.1,0.7909]
[1734431227871,7.80053049,4007.3,4006.1,0.7909]
[1734431228800,7.80053049,4007.1,4006.2,0.55]
[1734431229166,0.83,4007.0,4006.1,0.55]
[1734431229364,0.83,4007.0,4006.0,0.7991]
[1734431229365,1.69305305,4007.0,4006.0,0.7991]
[1734431232925,7.80053049,4006.9,4006.0,0.7991]
[1734431234566,7.80053049,4006.7,4005.7,0.55]
[1734431235182,7.80053049,4006.5,4005.2,0.7991]
[1734431235388,4.13986563,4006.4,4005.2,0.7991]
[1734431235589,2.14884494,4006.3,4005.2,0.7991]
[1734431235806,3.19083326,4006.3,4005.2,0.7991]
[1734431235978,1.99100275,4006.4,4005.2,0.7991]
[1734431236171,7.80053049,4006.5,4005.5,2.32871142]
[1734431236428,7.80053049,4006.5,4005.6,3.7664]
[1734431236724,7.80053049,4006.5,4005.7,0.55]
[1734431238903,8.66037894,4006.4,4005.7,0.55]
[1734431239103,7.80053049,4006.4,4005.7,0.55]
[1734431240119,0.80858282,4006.3,4005.6,0.7664]
[1734431240427,0.85989352,4006.2,4005.6,0.7664]
[1734431240565,0.80858282,4006.3,4005.6,0.7664]
[1734431240961,0.80858282,4006.3,4005.2,3.0]
[1734431240962,0.80858282,4006.3,4005.3,0.7664]
[1734431241225,0.8323,4006.2,4004.9,0.7664]
[1734431241386,2.30530217,4006.1,4004.9,0.7664]
[1734431241588,3.19172518,4006.0,4004.9,0.7664]
[1734431241806,9.94985224,4005.9,4004.9,0.7664]
[1734431242126,7.80053049,4005.9,4004.9,0.7664]
[1734431242425,7.80053049,4005.9,4005.0,0.55]
[1734431242628,0.99618637,4005.8,4004.9,0.7664]
[1734431243467,8.65984973,4005.7,4004.9,0.7664]
[1734431243667,7.80053049,4005.7,4004.9,0.7664]
[1734431247945,8.79671686,4005.8,4004.9,0.7664]
[1734431248094,7.80053049,4005.5,4004.0,0.7664]
[1734431248287,7.80053049,4005.5,4004.1,3.0]
[1734431249434,7.80053049,4005.5,4004.0,3.09511142]
[1734431250313,7.80053049,4005.5,4004.0,0.7664]
[1734431250918,3.14031142,4005.4,4004.0,0.7664]
[1734431251116,1.09408419,4005.3,4004.0,0.7664]
[1734431252303,0.8116,4005.4,4004.2,0.7901]
[1734431252594,7.80053049,4005.5,4004.3,1.07318622]
[1734431253125,7.80053049,4005.5,4004.3,0.7901]
[1734431253894,7.80053049,4005.4,4004.3,0.7901]
[1734431254801,7.80053049,4005.4,4004.5,3.0]
[1734431254992,7.80053049,4005.4,4004.6,0.7901]
[1734431256356,8.74971071,4005.4,4004.6,0.7901]
[1734431256828,8.74971071,4005.4,4004.6,3.7901]
[1734431257026,7.80053049,4005.3,4004.6,3.7901]
[1734431257728,7.80053049,4005.3,4004.6,0.7901]
[1734431258416,7.80053049,4005.3,4004.6,3.7901]
[1734431258589,7.80053049,4005.3,4004.6,0.7901]
[1734431258590,0.87497107,4005.2,4004.6,0.7901]
[1734431258791,0.87497107,4005.2,4004.6,3.7901]
[1734431259212,0.87497107,4005.2,4004.6,0.7901]
[1734431259416,0.87497107,4005.2,4004.6,3.7901]
[1734431260296,7.80053049,4005.6,4004.6,3.7901]
[1734431261726,7.80053049,4005.6,4004.6,0.7901]
[1734431262939,7.80053049,4005.5,4004.6,0.7901]
[1734431264510,0.18581221,4005.4,4004.6,0.7901]
[1734431264699,7.80053049,4005.5,4004.6,0.7901]
[1734431264700,0.18581221,4005.3,4004.6,0.7901]
[1734431264899,0.98444648,4005.2,4004.6,0.7901]
[1734431265103,0.18581221,4005.1,4004.6,0.7901]
[1734431265300,0.18584342,4005.0,4004.6,0.7901]
[1734431265526,0.18584342,4004.9,4003.6,0.7901]
[1734431265770,0.8116,4005.1,4003.6,0.7901]
[1734431265771,0.18584342,4005.0,4003.6,0.7901]
[1734431265944,0.17960777,4005.0,4003.6,0.7901]
[1734431266248,0.18584051,4004.9,4003.6,0.7901]
[1734431266411,0.17960777,4005.0,4003.6,0.7901]
[1734431266412,0.18584051,4004.8,4003.6,0.7901]
[1734431266732,0.18584051,4004.7,4003.6,0.7901]
[1734431266948,7.98013826,4005.0,4003.6,0.7901]
[1734431267162,1.14488933,4004.9,4003.6,0.7901]
[1734431267300,0.18585208,4004.8,4003.6,0.7901]
[1734431267498,0.18585208,4004.7,4003.6,0.7901]
[1734431267703,0.18585208,4004.6,4003.6,0.7901]
[1734431267931,0.18585208,4004.5,4003.6,0.7901]
[1734431268154,0.95903725,4004.9,4003.6,0.7901]
[1734431268453,0.18594215,4004.8,4003.7,0.804]
[1734431268654,0.18594215,4004.7,4003.7,0.804]
[1734431268964,0.18594215,4004.6,4003.7,0.804]
[1734431269106,0.95903725,4004.9,4003.8,0.804]
[1734431269306,1.07985697,4004.8,4003.8,0.804]
[1734431269612,0.18593942,4004.7,4003.8,0.804]
[1734431269819,0.18593942,4004.6,4003.8,0.804]
[1734431270029,0.18593942,4004.5,4003.8,0.804]
[1734431270313,0.89391755,4004.8,4003.8,0.804]
[1734431270625,0.18605163,4004.7,4003.8,0.804]
[1734431270851,0.18605163,4004.6,4003.8,0.804]
[1734431271059,0.18605163,4004.5,4003.8,0.804]
[1734431271264,0.89391755,4004.8,4003.8,0.804]
[1734431271404,0.18610104,4004.7,4003.8,0.804]
[1734431271608,0.18610104,4004.6,4003.8,0.804]
[1734431271836,7.98013826,4005.0,4003.8,0.804]
[1734431272028,0.18610657,4004.9,4003.8,0.804]
[1734431272234,0.18610657,4004.8,4003.8,0.804]
[1734431272536,0.18610657,4004.7,4003.8,0.804]
[1734431272761,0.18610657,4004.6,4003.8,0.804]
[1734431272907,1.72960777,4005.0,4003.8,0.804]
[1734431273105,0.35908479,4004.9,4003.8,0.804]
[1734431273417,0.18612401,4004.8,4003.8,0.804]
[1734431273623,0.18612401,4004.7,4003.9,0.28308622]
[1734431273830,1.55,4005.0,4004.0,0.804]
[1734431274022,0.18614617,4004.9,4004.0,0.804]
[1734431274216,0.18614617,4004.8,4004.0,0.804]
[1734431274416,0.18614617,4004.7,4004.0,0.804]
[1734431274621,1.55,4005.0,4004.0,0.804]
[1734431274817,0.18614195,4004.9,4004.0,0.804]
[1734431275088,0.18614195,4004.8,4004.0,0.804]
[1734431275227,1.55,4005.0,4004.2,0.804]
[1734431275580,0.18614743,4004.9,4004.2,0.804]
[1734431275706,0.18614743,4004.8,4004.2,0.804]
[1734431275915,3.1,4005.0,4004.2,0.804]
[1734431275916,0.18614743,4004.7,4004.2,0.804]
[1734431276132,3.1,4005.0,4004.2,0.804]
[1734431276416,0.18616003,4004.9,4004.2,0.804]
[1734431276616,0.18616003,4004.8,4004.2,0.804]
[1734431276824,0.18616003,4004.7,4004.2,0.804]
[1734431277026,0.18616003,4004.6,4004.2,0.804]
[1734431277218,3.1,4005.0,4004.2,0.804]
[1734431277454,0.49619128,4004.9,4004.2,0.804]
[1734431277610,0.18619128,4004.8,4004.2,0.804]
[1734431277809,0.18619128,4004.7,4004.2,0.804]
[1734431278048,0.18619128,4004.6,4004.2,0.804]
[1734431278278,0.31,4004.9,4004.2,0.804]
[1734431278555,0.52720615,4004.8,4004.2,0.804]
[1734431278869,0.18620615,4004.7,4004.2,0.804]
[1734431279011,0.18620615,4004.6,4004.2,0.804]
[1734431279368,0.18620615,4004.5,4004.2,0.804]
[1734431279550,0.18620615,4004.4,4004.2,0.804]
[1734431279847,0.18620615,4004.3,4004.2,0.804]
[1734431281041,0.18618305,4004.3,4004.2,0.804]
[1734431282778,0.18618305,4004.3,4003.9,0.7721]
[1734431282931,0.18618305,4004.2,4003.9,0.7721]
[1734431283117,0.7698,4004.7,4003.9,0.7721]
[1734431283316,1.36877184,4004.6,4003.9,0.7721]
[1734431283530,0.18614171,4004.5,4003.9,0.7721]
[1734431283859,0.18614171,4004.4,4003.9,0.7721]
[1734431284059,1.18263013,4004.6,4003.9,0.7721]
[1734431284060,0.18614171,4004.3,4003.9,0.7721]
[1734431284295,0.18614171,4004.2,4003.9,0.7721]
[1734431284583,2.22461845,4004.6,4003.9,0.7721]
[1734431284876,1.53689042,4004.5,4003.9,0.7721]
[1734431285077,0.1861469,4004.4,4003.9,0.7721]
[1734431285398,1.04720184,4004.3,4003.9,0.7721]
[1734431285685,1.53182841,4004.5,4003.1,0.7721]
[1734431285686,0.1861469,4004.2,4003.1,0.7721]
[1734431285846,1.81704478,4004.1,4003.1,0.7721]
[1734431286028,1.04722363,4004.0,4003.1,0.7721]
[1734431286227,2.09769163,4004.1,4003.1,0.7721]
[1734431286228,1.04749056,4003.9,4003.1,0.7721]
[1734431286476,2.09769163,4004.1,4003.1,0.7721]
[1734431286477,0.1861469,4003.8,4003.1,0.7721]
[1734431286679,0.1861469,4003.7,4003.1,0.7721]
[1734431286877,1.04198832,4004.0,4003.1,0.7721]
[1734431286878,0.1861469,4003.6,4003.1,0.7721]
[1734431287084,8.8562338,4004.1,4003.1,0.7721]
[1734431287085,1.04198832,4003.9,4003.1,0.7721]
[1734431287243,2.19328277,4003.8,4003.1,0.7721]
[1734431287444,1.04198832,4004.0,4003.1,0.7721]
[1734431287445,0.18608174,4003.7,4003.1,0.7721]
[1734431287648,1.04198832,4004.0,4003.1,0.7721]
[1734431287988,0.18602483,4003.9,4003.1,0.7721]
[1734431288133,1.04700094,4003.8,4003.1,0.7721]
[1734431288332,0.18602483,4003.7,4003.1,0.7721]
[1734431288568,1.04198832,4004.0,4003.1,0.7721]
[1734431288788,8.8562338,4004.1,4003.1,0.7721]
[1734431288789,2.19329949,4003.9,4003.1,0.7721]
[1734431288930,0.18603699,4003.8,4003.1,0.7721]
[1734431289135,0.18603699,4003.7,4003.1,0.7721]
[1734431289382,1.14612046,4003.9,4002.5,0.81513998]
[1734431289584,7.80053049,4003.7,4002.5,0.81513998]
[1734431289766,1.0992616,4003.6,4002.3,0.53351563]
[1734431289974,0.91326572,4003.6,4002.3,0.53351563]
[1734431290603,0.91326572,4003.6,4002.1,3.16863211]
[1734431290604,8.75627619,4003.5,4002.1,0.12696353]
[1734431290734,0.1859457,4003.4,4002.1,0.12696353]
[1734431290939,8.57033049,4003.5,4002.1,0.25042941]
[1734431291136,0.18594528,4003.4,4001.8,3.04140217]
[1734431291342,0.18594528,4003.4,4001.8,0.55]
[1734431291552,0.18594528,4003.4,4001.8,2.11455998]
[1734431291993,8.57033049,4003.5,4001.8,2.11455998]
[1734431291994,8.57033049,4003.5,4002.0,0.55]
[1734431292226,8.57033049,4003.5,4002.1,0.28308622]
[1734431292355,9.42736354,4003.5,4002.1,0.7721]
[1734431293997,9.42736354,4003.5,4002.1,1.05518622]
[1734431294283,9.42736354,4003.5,4002.2,0.7721]
[1734431295784,9.42736354,4003.5,4001.8,0.7578]
[1734431295785,1.04198832,4003.2,4001.8,0.7578]
[1734431296086,0.8077,4003.0,4001.8,0.7578]
[1734431296302,1.04618734,4002.9,4001.8,0.7578]
[1734431296504,0.99355919,4002.8,4001.7,0.167293]
[1734431296648,0.18585919,4002.7,4001.7,0.167293]
[1734431296848,8.60823049,4002.6,4001.7,0.167293]
[1734431297221,0.86082305,4002.5,4001.7,0.167293]
[1734431298884,8.60823049,4002.6,4001.7,0.167293]
[1734431300116,8.60823049,4002.6,4001.7,0.45037922]
[1734431300256,6.55134049,4002.6,4001.8,0.29953047]
[1734431300456,6.55134049,4002.6,4002.1,0.55]
[1734431300457,3.14497828,4002.6,4002.1,0.55]
[1734431301192,3.14497828,4002.6,4002.0,0.7578]
[1734431304223,3.14497828,4002.6,4002.2,0.7578]
[1734431306322,3.14497828,4002.6,4002.2,0.88510662]
[1734431306812,3.14497828,4002.6,4002.4,0.7578]
[1734431307913,3.14497828,4002.6,4002.5,33.649001]
[1734431308268,3.14497828,4002.6,4002.5,8.498715]
[1734431308478,3.14497828,4002.6,4002.5,3.297696]
[1734431310671,3.14497828,4002.6,4002.5,3.847696]
[1734431312269,3.14497828,4002.6,4002.5,3.297696]
[1734431312613,3.14497828,4002.6,4002.5,0.7578]
[1734431314447,3.14497828,4002.6,4001.8,1.3078]
[1734431319034,3.14497828,4002.6,4002.0,0.55]
[1734431319462,3.14497828,4002.6,4002.2,0.55]
[1734431319625,3.14497828,4002.6,4002.3,38.852362]
[1734431319824,3.14497828,4002.6,4002.4,1.3078]
[1734431320076,3.14497828,4002.6,4002.4,6.37474]
[1734431320276,3.14497828,4002.6,4002.5,20.034041]
[1734431321460,3.14497828,4002.6,4002.5,16.134168]
[1734431321660,3.14497828,4002.6,4002.5,7.871378]
[1734431321818,3.14497828,4002.6,4002.5,7.08604]
[1734431322743,3.14497828,4002.6,4002.0,0.55]
[1734431326059,3.14497828,4002.6,4002.0,0.83308622]
[1734431326381,3.14497828,4002.6,4002.0,3.83308622]
[1734431326880,3.14497828,4002.6,4002.0,0.83308622]
[1734431327180,3.14497828,4002.6,4002.4,0.55]
[1734431327385,3.14497828,4002.6,4002.5,27.206146]
[1734431327744,3.14497828,4002.6,4002.5,26.381093]
[1734431327943,3.14497828,4002.6,4002.5,25.888193]
[1734431328344,3.14497828,4002.6,4002.5,10.155771]
[1734431328542,3.14497828,4002.6,4002.5,8.75126]
[1734431330060,3.14497828,4002.6,4002.5,9.79345907]
[1734431330490,3.14497828,4002.6,4002.5,8.75126]
[1734431330803,3.14497828,4002.6,4002.5,9.7960504]
[1734431331540,3.14497828,4002.6,4002.5,9.79622946]
[1734431333278,3.14497828,4002.6,4002.5,5.523959]
[1734431333450,3.14497828,4002.6,4002.3,0.55]
[1734431333651,3.14497828,4002.6,4002.5,0.55]
[1734431333990,3.14497828,4002.6,4002.5,2.6859]
[1734431334190,3.14497828,4002.6,4002.5,16.535237]
[1734431337193,3.14497828,4002.6,4002.5,15.608237]
[1734431338750,3.14497828,4002.6,4002.4,0.55]
[1734431338996,3.14497828,4002.6,4002.5,15.058237]
[1734431339193,3.14497828,4002.6,4002.3,21.895487]
[1734431339364,3.14497828,4002.6,4002.3,22.94070446]
[1734431339571,3.14497828,4002.6,4002.4,15.816337]
[1734431339790,3.14497828,4002.6,4002.3,22.653587]
[1734431339993,3.14497828,4002.6,4002.3,23.69880446]
[1734431340193,3.14497828,4002.6,4002.4,18.819553]
[1734431340492,3.14497828,4002.6,4002.4,19.86477046]
[1734431340696,3.14497828,4002.6,4002.5,19.27656]
[1734431341002,3.14497828,4002.6,4002.5,14.821823]
[1734431341206,3.14497828,4002.6,4002.4,20.902123]
[1734431341507,3.14497828,4002.6,4002.4,13.224797]
[1734431341663,3.14497828,4002.6,4002.5,11.180392]
[1734431341869,3.14497828,4002.6,4002.3,18.96398846]
[1734431342128,3.14497828,4002.6,4002.4,16.972271]
[1734431342726,3.14497828,4002.6,4002.4,18.01748846]
[1734431343002,3.14497828,4002.6,4002.5,24.072582]
[1734431343506,3.14497828,4002.6,4002.5,16.460568]
[1734431343908,3.14497828,4002.6,4002.4,22.81005446]
[1734431344110,3.14497828,4002.6,4002.5,17.191068]
[1734431344271,1.28967645,4002.6,4002.5,18.26075422]
[1734431344475,1.28967645,4002.6,4002.5,19.06118363]
[1734431344831,1.28967645,4002.6,4002.5,22.10746944]
[1734431345024,1.28967645,4002.6,4002.5,21.57395381]
[1734431346131,1.28967645,4002.6,4002.5,17.977668]
[1734431346297,1.28967645,4002.6,4002.5,4.932306]
[1734431346506,1.28967645,4002.6,4002.5,5.97813066]
[1734431346916,1.28967645,4002.6,4002.5,4.932306]
[1734431347120,1.28967645,4002.6,4002.5,5.97813884]
[1734431347338,1.23723126,4002.6,4002.5,4.932306]
[1734431347505,1.23723126,4002.6,4002.5,5.97815614]
[1734431347701,1.23723126,4002.6,4002.5,4.932306]
[1734431347919,1.23723126,4002.6,4002.5,5.9781574]
[1734431348119,1.23723126,4002.6,4002.5,4.932306]
[1734431349091,1.23723126,4002.6,4002.5,7.97899785]
[1734431350834,1.23723126,4002.6,4002.5,6.96117165]
[1734431351215,1.23723126,4002.6,4002.5,8.52988546]
[1734431351422,1.23723126,4002.6,4002.5,33.07039865]
[1734431351656,1.23723126,4002.6,4002.5,36.71937665]
[1734431351860,0.25765101,4002.6,4002.5,37.00246287]
[1734431352146,0.769,4004.0,4002.9,0.7551]
[1734431352324,0.769,4004.0,4003.2,1.04570721]
[1734431353747,0.769,4004.3,4003.4,1.04570721]
[1734431354060,0.769,4004.3,4003.3,1.80080721]
[1734431354367,0.769,4004.3,4003.4,1.04570721]
[1734431354749,1.81220714,4004.7,4003.5,1.3051]
[1734431354951,30.509,4005.0,4004.0,0.7551]
[1734431355194,0.18650816,4004.9,4004.1,1.04570721]
[1734431355502,32.059,4005.0,4004.0,1.80080721]
[1734431356196,32.059,4005.0,4004.1,1.04570721]
[1734431356606,32.059,4005.0,4004.0,0.7551]
[1734431356607,32.059,4005.0,4004.0,1.80080721]
[1734431356926,32.059,4005.0,4004.0,0.7551]
[1734431358504,33.609,4005.0,4004.0,0.7551]
[1734431358721,33.609,4005.0,4004.5,0.00352999]
[1734431359868,36.16513921,4005.0,4004.5,0.00352999]
[1734431360179,0.7748,4004.8,4004.5,0.00352999]
[1734431360398,0.7748,4004.6,4004.5,0.00352999]
[1734431361928,0.9607441,4004.6,4004.5,0.00352999]
[1734431362416,3.9607441,4004.6,4004.5,0.00352999]
[1734431362569,7.28561404,4004.6,4004.5,0.00352999]
[1734431362770,8.32882118,4004.6,4004.5,0.00352999]
[1734431363222,7.28561404,4004.6,4004.5,0.00352999]
[1734431363428,8.32882118,4004.6,4004.5,0.00352999]
[1734431363727,8.32882118,4004.6,4002.9,0.28308622]
[1734431363728,6.51081404,4004.6,4002.9,0.28308622]
[1734431363928,0.7748,4004.4,4002.9,0.28308622]
[1734431364082,6.66122817,4004.5,4002.9,0.28308622]
[1734431364083,0.1859441,4004.3,4002.9,0.28308622]
[1734431364285,0.9607441,4004.2,4002.9,0.28308622]
[1734431364483,0.7748,4004.2,4002.9,0.28308622]
[1734431365403,0.7748,4004.2,4003.1,0.55]
[1734431365727,0.7748,4004.6,4003.3,1.37]
[1734431365901,35.1648,4005.0,4003.6,0.82]
[1734431366109,35.1648,4005.0,4003.8,0.82]
[1734431366277,35.1648,4005.0,4003.9,0.55]
[1734431366520,35.1648,4005.0,4003.9,0.83308622]
[1734431367512,35.1648,4005.0,4004.3,0.55]
[1734431367513,34.39,4005.0,4004.3,0.55]
[1734431367726,34.39,4005.0,4004.5,0.55]
[1734431367887,34.39,4005.0,4004.6,16.248619]
[1734431368088,34.39,4005.0,4004.7,7.038648]
[1734431368424,34.39,4005.0,4004.6,7.736773]
[1734431369177,35.94,4005.0,4004.6,7.736773]
[1734431370025,35.94,4005.0,4004.6,6.118035]
[1734431370821,35.94,4005.0,4004.7,1.37]
[1734431370974,35.94,4005.0,4004.9,0.55]
[1734431371179,35.94,4005.0,4004.9,32.410665]
[1734431371385,35.94,4005.0,4004.9,25.851396]
[1734431371787,35.94,4005.0,4004.9,21.78125]
[1734431372294,35.94,4005.0,4004.9,12.34599]
[1734431372640,37.49,4005.0,4004.9,10.321641]
[1734431375042,37.49,4005.0,4004.9,4.689643]
[1734431375601,37.49,4005.0,4004.9,4.315764]
[1734431375801,39.04,4005.0,4004.9,4.315764]
[1734431377531,39.04,4005.0,4004.1,1.37]
[1734431377682,39.04,4005.0,4004.3,3.0]
[1734431377889,39.04,4005.0,4004.4,21.905679]
[1734431378084,39.04,4005.0,4004.2,28.70077]
[1734431378300,39.04,4005.0,4004.2,22.83097]
[1734431378500,39.04,4005.0,4004.2,28.42494]
[1734431378797,39.04,4005.0,4004.2,28.67536941]
[1734431379008,39.04,4005.0,4004.3,43.365302]
[1734431379350,40.59,4005.0,4004.3,23.23622]
[1734431379535,40.59,4005.0,4004.3,17.862319]
[1734431379737,40.59,4005.0,4004.3,25.009748]
[1734431379931,40.59,4005.0,4004.3,24.053924]
[1734431380250,40.59,4005.0,4004.3,17.892539]
[1734431380451,40.59,4005.0,4004.2,28.056359]
[1734431382038,40.59,4005.0,4004.2,26.928495]
[1734431382234,40.59,4005.0,4004.2,25.820021]
[1734431382443,40.59,4005.0,4004.2,33.094947]
[1734431382657,42.14,4005.0,4004.2,33.094947]
[1734431386019,43.69,4005.0,4004.2,33.094947]
[1734431386265,43.69,4005.0,4004.4,0.55]
[1734431386482,43.69,4005.0,4004.5,24.445605]
[1734431386620,43.69,4005.0,4004.4,22.067905]
[1734431389620,45.24,4005.0,4004.6,0.7612]
[1734431389861,45.24,4005.0,4004.7,50.5]
[1734431390071,45.24,4005.0,4004.7,48.52476]
[1734431390271,45.24,4005.0,4004.8,0.55]
[1734431390470,45.24,4005.0,4004.9,50.5]
[1734431392349,45.24,4005.0,4004.9,43.121447]
[1734431393056,46.79,4005.0,4004.9,43.24854621]
[1734431393222,46.79,4005.0,4004.9,32.24178221]
[1734431394463,46.79,4005.0,4004.9,31.46568221]
[1734431396493,48.34,4005.0,4004.9,31.46568221]
[1734431396790,48.34,4005.0,4004.9,0.67709921]
[1734431397102,48.34,4005.0,4004.9,34.69193521]
[1734431398182,48.34,4005.0,4004.9,32.78164821]
[1734431398586,48.34,4005.0,4004.9,32.01945321]
[1734431398956,48.34,4005.0,4004.9,23.27463821]
[1734431399306,48.34,4005.0,4004.9,13.93904821]
[1734431399512,49.1472,4005.0,4004.9,4.122068]
[1734431399812,53.25333921,4005.0,4004.9,2.205325]
[1734431400114,53.25333921,4005.0,4004.2,1.09137354]
[1734431400115,50.6972,4005.0,4004.5,27.776865]
[1734431400410,50.6972,4005.0,4004.6,2.313223]
[1734431400693,50.6972,4005.0,4004.2,0.04566633]
[1734431400694,50.6972,4005.0,4004.3,11.932327]
[1734431400901,0.7857,4004.9,4004.2,0.04566633]
[1734431401082,0.7857,4004.7,4003.5,1.04570721]
[1734431401393,0.7857,4004.7,4003.3,1.56856081]
[1734431401394,0.7857,4004.6,4003.4,1.04570721]
[1734431401751,0.7857,4004.6,4003.3,0.12768035]
[1734431401752,0.7857,4004.6,4003.3,1.17338756]
[1734431401956,0.7857,4004.6,4003.4,1.04570721]
[1734431402865,0.7857,4004.6,4003.1,3.5596115]
[1734431402866,0.7857,4004.6,4003.3,1.04570721]